bitfinex-derivatives/quotes_BTCF0:USTF0_20250720
["timestamp","ask_amount","ask_price","bid_price","bid_amount"]
[1753048884228,1.1728296,117830.0,117820.0,1.15564571]
[1753048884928,1.1728296,117830.0,117820.0,1.20126811]
[1753048885229,1.1728296,117830.0,117820.0,0.9036968]
[1753048885424,1.1728296,117830.0,117820.0,0.9043768]
[1753048885626,0.8120296,117830.0,117820.0,0.59594811]
[1753048885929,0.8120296,117830.0,117820.0,1.20186811]
[1753048886926,0.8120296,117830.0,117820.0,1.56266811]
[1753048887230,0.8120296,117830.0,117820.0,1.15624571]
[1753048888232,0.8120296,117830.0,117820.0,0.8586744]
[1753048888424,0.8120296,117830.0,117820.0,1.15624571]
[1753048888932,0.7696116,117830.0,117820.0,1.20186811]
[1753048890027,0.7696116,117830.0,117820.0,1.15624571]
[1753048890432,0.7696116,117830.0,117820.0,1.20186811]
[1753048890632,0.7696116,117830.0,117820.0,1.15624571]
[1753048890927,0.55752,117830.0,117820.0,1.22772571]
[1753048891131,0.72718,117830.0,117820.0,1.27334811]
[1753048891534,0.72718,117830.0,117820.0,1.26551811]
[1753048891936,0.72718,117830.0,117820.0,1.20186811]
[1753048892433,0.72718,117830.0,117820.0,1.26551811]
[1753048892631,0.55752,117830.0,117820.0,0.9757768]
[1753048892832,0.72718,117830.0,117820.0,1.27334811]
[1753048893032,0.42881,117830.0,117820.0,1.63414811]
[1753048893234,0.032,117830.0,117820.0,1.75826971]
[1753048893533,0.02017,117830.0,117820.0,2.14869738]
[1753048893834,0.18474,117850.0,117840.0,0.2826956]
[1753048894034,0.43474,117850.0,117840.0,1.54822691]
[1753048894633,0.5798512,117850.0,117840.0,1.54822691]
[1753048894935,0.41022,117850.0,117840.0,1.54822691]
[1753048895141,0.41222,117850.0,117840.0,1.54922691]
[1753048895332,0.252,117850.0,117840.0,1.5663928]
[1753048895531,0.082,117850.0,117840.0,1.5663928]
[1753048896029,0.082,117850.0,117840.0,2.03367611]
[1753048896236,0.082,117850.0,117840.0,2.03385681]
[1753048896433,0.082,117850.0,117840.0,2.06428448]
[1753048896937,0.082,117850.0,117840.0,2.41628448]
[1753048897327,0.081,117850.0,117840.0,2.41628448]
[1753048897527,0.082,117850.0,117840.0,2.77808448]
[1753048898032,0.081,117850.0,117840.0,2.77708448]
[1753048898338,0.082,117850.0,117840.0,2.77808448]
[1753048898638,0.002,117850.0,117840.0,2.82370688]
[1753048898943,0.04569,117860.0,117850.0,0.2360012]
[1753048899131,0.18474,117870.0,117860.0,0.2774668]
[1753048899328,0.6543424,117870.0,117860.0,1.54251811]
[1753048899638,0.6660724,117870.0,117860.0,1.54251811]
[1753048899830,0.49647,117870.0,117860.0,1.54251811]
[1753048900025,0.6660724,117870.0,117860.0,1.57294578]
[1753048900229,0.49647,117870.0,117860.0,1.57294578]
[1753048900630,0.6660724,117870.0,117860.0,1.57294578]
[1753048900940,0.49647,117870.0,117860.0,1.57294578]
[1753048901128,0.6670724,117870.0,117860.0,1.57394578]
[1753048901332,0.49847,117870.0,117860.0,1.59339165]
[1753048901533,0.6680724,117870.0,117860.0,1.29582034]
[1753048901732,0.6680724,117870.0,117860.0,1.59339165]
[1753048902236,0.6987224,117870.0,117860.0,1.59339165]
[1753048902426,0.6987224,117870.0,117860.0,1.57129031]
[1753048903438,0.6987224,117870.0,117860.0,1.273719]
[1753048903639,0.6987224,117870.0,117860.0,1.57129031]
[1753048903831,0.52912,117870.0,117860.0,1.57129031]
[1753048905536,0.46222,117870.0,117860.0,1.57129031]
[1753048906030,0.48674,117870.0,117860.0,1.57129031]
[1753048908243,0.48674,117870.0,117860.0,1.60171798]
[1753048908442,0.48674,117870.0,117860.0,1.30414667]
[1753048908741,0.49847,117870.0,117860.0,1.60171798]
[1753048909530,0.46222,117870.0,117860.0,1.60171798]
[1753048909734,0.002,117870.0,117860.0,1.77140598]
[1753048910038,0.132,117870.0,117860.0,1.4890294]
[1753048910239,0.04569,117880.0,117870.0,0.1696024]
[1753048910442,0.18474,117890.0,117880.0,0.169588]
[1753048910638,0.42474,117890.0,117880.0,1.43511931]
[1753048911641,0.42474,117890.0,117880.0,1.46450976]
[1753048913041,0.42574,117890.0,117880.0,1.46550976]
[1753048913340,0.42574,117890.0,117880.0,1.46450976]
[1753048913841,0.42674,117890.0,117880.0,1.47050976]
[1753048915240,0.40222,117890.0,117880.0,1.47050976]
[1753048915439,0.242,117890.0,117880.0,1.64016576]
[1753048915641,0.242,117890.0,117880.0,1.47050976]
[1753048915836,0.1996162,117890.0,117880.0,1.47050976]
[1753048916042,0.15848,117900.0,117890.0,0.1695736]
[1753048916346,0.35848,117900.0,117890.0,0.85831914]
[1753048916545,0.38326,117900.0,117890.0,0.85831914]
[1753048917239,0.38426,117900.0,117890.0,0.86031914]
[1753048917637,0.25,117900.0,117890.0,1.22208045]
[1753048917843,0.25,117900.0,117890.0,1.26770285]
[1753048918144,0.251,117900.0,117890.0,1.04911154]
[1753048918345,0.251,117900.0,117890.0,1.65503154]
[1753048918346,0.27578,117900.0,117890.0,1.65503154]
[1753048919440,0.1756241,117900.0,117890.0,2.12224284]
[1753048919739,0.4741441,117900.0,117890.0,0.93928938]
[1753048919945,0.6437033,117900.0,117890.0,0.1745736]
[1753048920139,1.0045033,117900.0,117890.0,0.1745736]
[1753048920342,1.0045033,117900.0,117890.0,0.7803736]
[1753048920542,0.6437033,117900.0,117890.0,0.7803736]
[1753048920842,1.0045033,117900.0,117890.0,0.7802936]
[1753048921444,1.0045033,117900.0,117890.0,1.07786491]
[1753048921639,0.6437033,117900.0,117890.0,1.07786491]
[1753048921841,1.0045033,117900.0,117890.0,1.07786491]
[1753048922344,1.0045033,117900.0,117890.0,0.7802936]
[1753048922839,1.0045033,117900.0,117890.0,1.07786491]
[1753048923242,1.0045033,117900.0,117890.0,0.47214491]
[1753048923440,1.0045033,117900.0,117890.0,2.25026491]
[1753048923752,0.6437033,117900.0,117890.0,2.25026491]
[1753048924139,1.0045033,117900.0,117890.0,2.25026491]
[1753048926345,0.6437033,117900.0,117890.0,2.25026491]
[1753048928353,0.6437033,117900.0,117890.0,0.47214491]
[1753048928652,0.6437033,117900.0,117890.0,1.9529336]
[1753048928843,1.0045033,117900.0,117890.0,2.25050491]
[1753048929043,0.6437033,117900.0,117890.0,2.25050491]
[1753048929349,1.0045033,117900.0,117890.0,2.25050491]
[1753048929551,0.6437033,117900.0,117890.0,2.25050491]
[1753048930146,0.4741441,117900.0,117890.0,2.25050491]
[1753048930352,0.4741441,117900.0,117890.0,2.31469491]
[1753048931453,0.4741441,117900.0,117890.0,2.67549491]
[1753048932243,0.2246241,117900.0,117890.0,2.67549491]
[1753048932452,0.1756241,117900.0,117890.0,2.36766622]
[1753048932752,0.1756241,117900.0,117890.0,2.67457491]
[1753048932952,0.4413641,117900.0,117890.0,1.00347938]
[1753048933155,1.0045033,117900.0,117890.0,2.0280736]
[1753048933455,1.0045033,117900.0,117890.0,1.9520136]
[1753048934355,1.0045033,117900.0,117890.0,1.3475736]
[1753048934658,1.0045033,117900.0,117890.0,1.9527336]
[1753048935457,1.0045033,117900.0,117890.0,2.25030491]
[1753048935758,1.0045033,117900.0,117890.0,2.31449491]
[1753048938955,0.8349441,117900.0,117890.0,2.31449491]
[1753048940052,1.0045033,117900.0,117890.0,2.0169236]
[1753048940257,1.0045033,117900.0,117890.0,2.31449491]
[1753048943154,0.7196841,117900.0,117890.0,2.31449491]
[1753048943358,0.3588841,117900.0,117890.0,2.31449491]
[1753048944359,0.3711641,117900.0,117890.0,2.31449491]
[1753048945253,0.3711641,117900.0,117890.0,2.67529491]
[1753048946462,0.5407233,117900.0,117890.0,2.31449491]
[1753048946653,0.5735033,117900.0,117890.0,2.31449491]
[1753048946854,0.6437033,117900.0,117890.0,2.31449491]
[1753048948360,0.4741441,117900.0,117890.0,2.34485938]
[1753048948959,0.6437034,117900.0,117890.0,2.70565938]
[1753048949160,0.6437034,117900.0,117890.0,2.66192621]
[1753048949753,0.4741441,117900.0,117890.0,2.66192621]
[1753048950160,0.3588841,117900.0,117890.0,2.67718414]
[1753048950561,0.5284433,117900.0,117890.0,2.67718414]
[1753048950760,0.3588841,117900.0,117890.0,2.67718414]
[1753048951967,0.1756241,117900.0,117890.0,2.67718414]
[1753048952565,0.2210341,117900.0,117890.0,2.67718414]
[1753048952762,0.3266841,117900.0,117890.0,2.67718414]
[1753048952959,0.3492841,117900.0,117890.0,2.67718414]
[1753048955168,0.3492841,117900.0,117890.0,0.97123414]
[1753048955365,0.3492841,117900.0,117890.0,2.74827414]
[1753048956363,0.3492841,117900.0,117890.0,2.14415414]
[1753048956567,0.3492841,117900.0,117890.0,2.70265174]
[1753048956763,0.3492841,117900.0,117890.0,2.09853174]
[1753048956967,0.3492841,117900.0,117890.0,2.70233174]
[1753048958269,0.3492841,117900.0,117890.0,2.74808773]
[1753048958969,0.3492841,117900.0,117890.0,2.70233174]
[1753048960770,0.3492841,117900.0,117890.0,2.09853174]
[1753048960969,0.3492841,117900.0,117890.0,2.70181174]
[1753048961570,0.3492841,117900.0,117890.0,2.09853174]
[1753048961766,0.3492841,117900.0,117890.0,2.70173174]
[1753048961964,0.3492841,117900.0,117890.0,2.09853174]
[1753048962765,0.3492841,117900.0,117890.0,2.64710478]
[1753048964872,0.3492841,117900.0,117890.0,2.04410478]
[1753048965073,0.3492841,117900.0,117890.0,2.64666478]
[1753048966870,0.3492841,117900.0,117890.0,2.64662478]
[1753048969573,0.3492841,117900.0,117890.0,2.70740113]
[1753048969773,0.3492841,117900.0,117890.0,2.70692113]
[1753048970976,0.3266841,117900.0,117890.0,2.70692113]
[1753048972875,0.3492841,117900.0,117890.0,2.70692113]
[1753048977182,0.3492841,117900.0,117890.0,2.70705927]
[1753048977782,0.1756241,117900.0,117890.0,2.70705927]
[1753048978183,0.1756241,117900.0,117890.0,3.06705927]
[1753048978785,0.2237541,117900.0,117890.0,3.06705927]
[1753048980082,0.3321941,117900.0,117890.0,3.06705927]
[1753048980494,0.3321941,117900.0,117890.0,2.10497927]
[1753048980681,0.3549141,117900.0,117890.0,2.10497927]
[1753048980884,0.3549141,117900.0,117890.0,2.70573927]
[1753048985680,0.3549141,117900.0,117890.0,2.70493927]
[1753048987186,0.3549141,117900.0,117890.0,2.10497927]
[1753048987386,0.3549141,117900.0,117890.0,2.70457927]
[1753048987584,0.10844,117920.0,117910.0,0.286762]
[1753048987784,0.31844,117920.0,117910.0,1.79377018]
[1753048988186,0.31844,117920.0,117910.0,1.84190018]
[1753048988387,0.31844,117920.0,117910.0,2.18190018]
[1753048988587,0.31844,117920.0,117910.0,2.18230018]
[1753048988893,0.21,117920.0,117910.0,2.19727602]
[1753048989288,0.21,117920.0,117910.0,2.19827602]
[1753048989488,0.31844,117920.0,117910.0,2.19827602]
[1753048989889,0.31844,117920.0,117910.0,2.19727602]
[1753048990091,0.31944,117920.0,117910.0,2.20127602]
[1753048990289,0.31944,117920.0,117910.0,2.14049967]
[1753048990694,0.32044,117920.0,117910.0,2.14549967]
[1753048991094,0.34316,117920.0,117910.0,2.14549967]
[1753048991791,0.34316,117920.0,117910.0,2.20627602]
[1753048992395,0.34316,117920.0,117910.0,2.14549967]
[1753048992695,0.32044,117920.0,117910.0,2.14549967]
[1753048995295,0.32044,117920.0,117910.0,2.19117717]
[1753048996003,0.32044,117920.0,117910.0,2.26034764]
[1753048997006,0.34316,117920.0,117910.0,2.26034764]
[1753048997300,0.34316,117920.0,117910.0,1.32034764]
[1753048997504,1.0401707,117920.0,117910.0,0.0871275]
[1753048997698,1.0401707,117920.0,117910.0,1.8270375]
[1753048998002,1.23958188,117920.0,117910.0,1.78136]
[1753048998200,1.0401707,117920.0,117910.0,1.9509051]
[1753048998408,1.0401707,117920.0,117910.0,2.15031628]
[1753048998804,1.0401707,117920.0,117910.0,1.9509051]
[1753048999004,1.0401707,117920.0,117910.0,0.37795628]
[1753048999206,1.0401707,117920.0,117910.0,1.98097118]
[1753048999508,1.0401707,117920.0,117910.0,1.55067628]
[1753048999809,1.0401707,117920.0,117910.0,1.9512651]
[1753049000106,1.0401707,117920.0,117910.0,2.15067628]
[1753049001005,1.0401707,117920.0,117910.0,2.15119628]
[1753049001207,1.0401707,117920.0,117910.0,1.9517851]
[1753049001402,1.0401707,117920.0,117910.0,2.15119628]
[1753049005113,1.0401707,117920.0,117910.0,1.55067628]
[1753049005409,0.50984,117920.0,117910.0,2.21672951]
[1753049005906,0.34316,117920.0,117910.0,2.80738915]
[1753049006111,0.1076,117930.0,117920.0,0.2496307]
[1753049006309,0.3176,117930.0,117920.0,1.00925306]
[1753049006508,0.36659,117930.0,117920.0,1.00925306]
[1753049006711,0.39137,117930.0,117920.0,1.00925306]
[1753049007106,0.39137,117930.0,117920.0,1.08537902]
[1753049007313,0.39137,117930.0,117920.0,1.05493056]
[1753049007705,0.6714763,117930.0,117920.0,1.09615938]
[1753049008011,1.0322763,117930.0,117920.0,2.00622645]
[1753049008208,1.0322763,117930.0,117920.0,2.25131513]
[1753049008709,1.0332763,117930.0,117920.0,2.25531513]
[1753049008913,1.0332763,117930.0,117920.0,2.30344513]
[1753049009413,1.0332763,117930.0,117920.0,2.05835645]
[1753049009610,1.0332763,117930.0,117920.0,2.25776763]
[1753049009815,1.0342763,117930.0,117920.0,2.26176763]
[1753049010216,1.0342763,117930.0,117920.0,1.41266645]
[1753049010412,1.0342763,117930.0,117920.0,2.21371763]
[1753049013711,1.0342763,117930.0,117920.0,2.26184763]
[1753049015120,0.6734763,117930.0,117920.0,2.26184763]
[1753049015320,1.0342763,117930.0,117920.0,2.26184763]
[1753049016016,1.0342763,117930.0,117920.0,2.30752513]
[1753049016925,1.0342763,117930.0,117920.0,2.31595222]
[1753049017220,1.0342763,117930.0,117920.0,2.30752513]
[1753049018124,0.86476,117930.0,117920.0,2.50693631]
[1753049018318,0.75417,117930.0,117920.0,2.50693631]
[1753049019120,0.75417,117930.0,117920.0,2.50685631]
[1753049019621,0.75417,117930.0,117920.0,2.47641056]
[1753049020128,1.0342762,117930.0,117920.0,2.27699938]
[1753049020428,0.86476,117930.0,117920.0,2.27699938]
[1753049020730,1.0342762,117930.0,117920.0,2.27699938]
[1753049021122,0.86476,117930.0,117920.0,2.27699938]
[1753049021416,0.70518,117930.0,117920.0,2.27699938]
[1753049021617,0.212,117930.0,117920.0,2.79153306]
[1753049021818,0.16387,117930.0,117920.0,3.12881056]
[1753049022012,0.15659,117950.0,117940.0,0.1695018]
[1753049022216,0.47320193,117950.0,117940.0,1.33163298]
[1753049022413,0.45659,117950.0,117940.0,1.33163298]
[1753049022624,0.45659,117950.0,117940.0,1.37731048]
[1753049022820,0.48137,117950.0,117940.0,1.37731048]
[1753049023121,0.59196,117950.0,117940.0,0.8181393]
[1753049023319,0.7614474,117950.0,117940.0,1.01755048]
[1753049023516,0.7614474,117950.0,117940.0,0.7725418]
[1753049023823,0.7614474,117950.0,117940.0,0.97195298]
[1753049024322,0.7624474,117950.0,117940.0,0.97395298]
[1753049024527,1.1232474,117950.0,117940.0,1.9472218]
[1753049024722,1.1232474,117950.0,117940.0,2.14663298]
[1753049025624,0.7624474,117950.0,117940.0,2.14663298]
[1753049025819,0.59296,117950.0,117940.0,2.14663298]
[1753049027326,0.7624474,117950.0,117940.0,2.14663298]
[1753049027523,0.59296,117950.0,117940.0,2.14663298]
[1753049028425,0.7624474,117950.0,117940.0,2.14663298]
[1753049029227,0.59296,117950.0,117940.0,2.14663298]
[1753049030728,0.7624474,117950.0,117940.0,2.14663298]
[1753049031429,1.1232474,117950.0,117940.0,2.14703298]
[1753049031627,0.7624474,117950.0,117940.0,2.14703298]
[1753049031930,1.1232474,117950.0,117940.0,2.14703298]
[1753049032329,1.49222658,117950.0,117940.0,0.003]
[1753049032633,1.49222658,117950.0,117940.0,0.60544]
[1753049033027,1.50882566,117950.0,117940.0,0.60544]
[1753049033428,1.50882566,117950.0,117940.0,0.003]
[1753049033628,1.50882566,117950.0,117940.0,0.6054]
[1753049034438,1.50882566,117950.0,117940.0,0.003]
[1753049034735,1.50882566,117950.0,117940.0,0.6054]
[1753049035634,1.50882566,117950.0,117940.0,0.60524]
[1753049036337,1.50882566,117950.0,117940.0,0.7745418]
[1753049036835,1.50882566,117950.0,117940.0,0.60504]
[1753049037533,1.50882566,117950.0,117940.0,0.7745418]
[1753049037735,1.50882566,117950.0,117940.0,0.60504]
[1753049038630,1.50882566,117950.0,117940.0,0.7745418]
[1753049039136,1.50882566,117950.0,117940.0,0.7739818]
[1753049040037,1.50882566,117950.0,117940.0,0.60448]
[1753049042137,1.30941448,117950.0,117940.0,0.60448]
[1753049042436,1.50882566,117950.0,117940.0,0.60448]
[1753049042638,1.33925766,117950.0,117940.0,0.60448]
[1753049043232,1.33925766,117950.0,117940.0,0.60476]
[1753049043532,0.4459418,117940.0,117930.0,0.01736845]
[1753049043734,1.28677206,117940.0,117930.0,0.01736845]
[1753049044039,1.45635606,117940.0,117930.0,0.01736845]
[1753049044337,1.45635606,117940.0,117930.0,0.62256845]
[1753049044538,0.1695881,117880.0,117870.0,0.06670899]
[1753049044733,0.1696312,117850.0,117840.0,0.15448001]
[1753049044929,0.4326456,117840.0,117830.0,0.03647]
[1753049045134,1.27134992,117840.0,117830.0,0.64303]
[1753049045336,1.27134992,117840.0,117830.0,0.64295]
[1753049045637,1.14137438,117840.0,117830.0,0.14001]
[1753049045942,0.91745874,117840.0,117830.0,0.94582118]
[1753049046137,0.4296456,117840.0,117830.0,0.94582118]
[1753049046342,0.7904456,117840.0,117830.0,1.11548118]
[1753049046638,0.7904456,117840.0,117830.0,1.11532118]
[1753049046842,0.7904456,117840.0,117830.0,1.26980118]
[1753049047136,0.081,117840.0,117830.0,1.27380118]
[1753049047339,0.2506456,117840.0,117830.0,1.27380118]
[1753049047639,0.081,117840.0,117830.0,1.2916732]
[1753049047836,0.056,117840.0,117830.0,2.0324732]
[1753049048042,0.4508,117870.0,117850.0,0.2002404]
[1753049048233,0.6408,117870.0,117860.0,1.26991798]
[1753049049040,1.28518358,117870.0,117860.0,1.0706268]
[1753049049243,1.4705924,117870.0,117860.0,1.0706668]
[1753049049544,1.4705924,117870.0,117860.0,2.2438668]
[1753049049846,1.2940924,117870.0,117860.0,2.44327798]
[1753049050035,1.2940924,117870.0,117860.0,0.66351798]
[1753049050236,1.12949,117870.0,117860.0,2.44331798]
[1753049050433,1.12849,117870.0,117860.0,2.44531798]
[1753049050638,0.68681,117870.0,117860.0,2.44531798]
[1753049050839,0.68781,117870.0,117860.0,2.44631798]
[1753049051039,0.65517,117870.0,117860.0,2.44631798]
[1753049051241,0.65517,117870.0,117860.0,2.2469068]
[1753049051444,0.65517,117870.0,117860.0,2.44631798]
[1753049053740,0.8247724,117870.0,117860.0,2.44631798]
[1753049054142,0.8574124,117870.0,117860.0,2.44571798]
[1753049054342,0.9332924,117870.0,117860.0,2.44571798]
[1753049056443,0.9332924,117870.0,117860.0,1.83955798]
[1753049056639,1.67200358,117870.0,117860.0,0.29749]
[1753049056845,1.67200358,117870.0,117860.0,2.2459868]
[1753049057145,1.4725924,117870.0,117860.0,2.44539798]
[1753049058443,1.4725924,117870.0,117860.0,2.2459868]
[1753049058845,1.4485724,117870.0,117860.0,2.2459868]
[1753049059047,1.3427524,117870.0,117860.0,2.2459868]
[1753049059448,1.4485724,117870.0,117860.0,2.2459868]
[1753049059649,1.4485724,117870.0,117860.0,2.44539798]
[1753049060242,1.4485724,117870.0,117860.0,0.37202798]
[1753049060442,1.4485724,117870.0,117840.0,0.19941118]
[1753049060443,0.25106,117830.0,117820.0,0.1304]
[1753049060642,1.47135533,117830.0,117820.0,0.7135]
[1753049060843,0.1696744,117820.0,117810.0,0.02458]
[1753049061049,1.08056973,117820.0,117810.0,0.7402]
[1753049061345,0.88115855,117820.0,117810.0,0.75209]
[1753049061548,0.88115855,117820.0,117810.0,0.85563]
[1753049061746,0.88115855,117820.0,117810.0,0.24583]
[1753049062046,0.8618744,117820.0,117810.0,1.0254388]
[1753049062345,0.25,117820.0,117810.0,2.00905413]
[1753049062549,0.3628,117830.0,117820.0,0.4641644]
[1753049062749,0.88014,117830.0,117800.0,0.46662]
[1753049062948,0.4461432,117800.0,117790.0,0.26991]
[1753049063153,1.36511853,117800.0,117790.0,0.88139]
[1753049063448,1.38438327,117800.0,117790.0,0.10582]
[1753049063647,0.1697176,117790.0,117780.0,0.15448]
[1753049063950,0.325282,117780.0,117770.0,1.32788]
[1753049064150,1.19425733,117780.0,117770.0,1.93948]
[1753049064343,0.960102,117780.0,117770.0,2.1092264]
[1753049064744,0.853312,117780.0,117770.0,1.32788]
[1753049064944,0.853312,117780.0,117770.0,2.1325164]
[1753049065145,0.853312,117780.0,117770.0,1.5203964]
[1753049065444,0.853312,117780.0,117770.0,2.1326364]
[1753049065649,0.92121557,117780.0,117770.0,2.1326364]
[1753049065845,1.03892557,117780.0,117770.0,1.1774]
[1753049066052,1.2730809,117780.0,117770.0,0.61632]
[1753049066250,1.03892557,117780.0,117770.0,0.62876]
[1753049066652,1.2730809,117780.0,117770.0,0.62936]
[1753049067049,1.2730809,117780.0,117770.0,0.004]
[1753049067249,1.2740809,117780.0,117770.0,0.6326]
[1753049067645,1.2740809,117780.0,117770.0,0.007]
[1753049067952,1.2740809,117780.0,117770.0,0.63288]
[1753049068151,1.03992557,117780.0,117770.0,0.007]
[1753049068449,1.03992557,117780.0,117770.0,0.63264]
[1753049068854,1.2730809,117780.0,117770.0,0.62964]
[1753049069158,1.2740809,117780.0,117770.0,0.63364]
[1753049069855,1.2740809,117780.0,117770.0,0.63396]
[1753049070154,0.04735,117740.0,117720.0,1.501236]
[1753049070456,1.0803541,117730.0,117720.0,1.5070285]
[1753049070750,1.2336441,117730.0,117720.0,1.35998]
[1753049070956,1.2336441,117730.0,117720.0,1.98722]
[1753049071152,1.3503541,117730.0,117720.0,1.98722]
[1753049071348,1.3503541,117730.0,117720.0,0.16341]
[1753049071553,1.58450943,117730.0,117720.0,1.96449]
[1753049071755,1.2336441,117730.0,117720.0,1.36014]
[1753049071950,1.1862941,117730.0,117720.0,2.1569985]
[1753049072258,0.23415533,117750.0,117740.0,0.1697897]
[1753049072259,0.5305798,117750.0,117740.0,0.1697897]
[1753049072454,0.6308,117750.0,117740.0,2.39120503]
[1753049072849,0.4208,117750.0,117740.0,2.39120503]
[1753049073044,0.4208,117750.0,117740.0,2.39172503]
[1753049073245,0.4208,117750.0,117740.0,2.76172503]
[1753049073451,0.4228,117750.0,117740.0,2.39172503]
[1753049073845,0.062,117750.0,117740.0,2.75252503]
[1753049074754,0.062,117750.0,117740.0,2.39172503]
[1753049075145,0.5925753,117750.0,117740.0,0.3559697]
[1753049075345,0.8025753,117750.0,117740.0,2.39260503]
[1753049075549,0.8274653,117750.0,117740.0,2.39260503]
[1753049076253,0.8274653,117750.0,117740.0,2.1584497]
[1753049076450,0.8254653,117750.0,117740.0,2.39160503]
[1753049076651,0.8284653,117750.0,117740.0,2.39260503]
[1753049077252,0.8274653,117750.0,117740.0,2.39260503]
[1753049077554,0.8035753,117750.0,117740.0,2.39260503]
[1753049077748,0.273,117750.0,117740.0,2.75340503]
[1753049077949,0.01929777,117760.0,117740.0,3.17326103]
[1753049078151,0.13929777,117760.0,117750.0,0.58087053]
[1753049078359,0.18905857,117760.0,117750.0,0.58087053]
[1753049078556,0.54985857,117760.0,117750.0,0.58087053]
[1753049079056,0.55185857,117760.0,117750.0,0.58087053]
[1753049079262,0.68409857,117760.0,117750.0,1.20819053]
[1753049079561,1.0215108,117760.0,117750.0,1.19466053]
[1753049079755,1.0215108,117760.0,117750.0,0.16341]
[1753049079961,1.0215108,117760.0,117750.0,1.17416]
[1753049080159,1.0225108,117760.0,117750.0,2.0897052]
[1753049080556,1.0225108,117760.0,117750.0,2.1379452]
[1753049080861,1.0215108,117760.0,117750.0,2.1379452]
[1753049081157,1.0225108,117760.0,117750.0,1.96917]
[1753049081661,1.0225108,117760.0,117750.0,2.1389452]
[1753049081857,1.0225108,117760.0,117750.0,1.5083452]
[1753049082053,1.0225108,117760.0,117750.0,2.1389452]
[1753049082257,1.0215108,117760.0,117750.0,2.1421852]
[1753049082556,1.0205108,117760.0,117750.0,1.5103452]
[1753049082959,1.0215108,117760.0,117750.0,1.5123452]
[1753049083160,1.0215108,117760.0,117750.0,2.1430252]
[1753049084065,1.0215108,117760.0,117750.0,1.34257]
[1753049084266,1.0215108,117760.0,117750.0,2.1430252]
[1753049085566,1.0215108,117760.0,117750.0,1.97297]
[1753049085766,1.0215108,117760.0,117750.0,2.1427452]
[1753049087264,1.16175026,117760.0,117750.0,0.2414]
[1753049087462,1.41442962,117760.0,117750.0,0.82919]
[1753049087662,1.39590559,117760.0,117750.0,0.82919]
[1753049087867,1.41442961,117760.0,117750.0,0.82919]
[1753049088070,1.18027428,117760.0,117750.0,0.9989652]
[1753049088367,1.18027428,117760.0,117750.0,1.0111852]
[1753049088666,1.18027428,117760.0,117750.0,0.84141]
[1753049089162,1.18027428,117760.0,117750.0,1.0111852]
[1753049089564,1.18027428,117760.0,117750.0,0.4594152]
[1753049089766,1.18027428,117760.0,117750.0,1.0968552]
[1753049090066,1.18027428,117760.0,117750.0,0.87916]
[1753049090268,1.41442961,117760.0,117750.0,0.87916]
[1753049090962,1.41442961,117760.0,117750.0,0.005]
[1753049091361,1.18027428,117760.0,117750.0,0.65192]
[1753049091565,1.41442961,117760.0,117750.0,0.65192]
[1753049092066,1.18027428,117760.0,117750.0,0.65192]
[1753049092465,1.41442961,117760.0,117750.0,0.65192]
[1753049093264,1.18027428,117760.0,117750.0,0.65196]
[1753049093464,1.41442961,117760.0,117750.0,0.65196]
[1753049093670,1.18027428,117760.0,117750.0,0.65196]
[1753049093870,1.41442961,117760.0,117750.0,0.65196]
[1753049094065,1.41442961,117760.0,117750.0,0.005]
[1753049094268,1.41442961,117760.0,117750.0,0.65336]
[1753049094462,1.18027428,117760.0,117750.0,0.65336]
[1753049094972,1.18027428,117760.0,117750.0,0.005]
[1753049095169,1.18027428,117760.0,117750.0,0.65364]
[1753049095973,1.18027428,117760.0,117750.0,0.77531]
[1753049096672,1.18027428,117760.0,117750.0,0.65304]
[1753049097772,1.41442961,117760.0,117750.0,0.65304]
[1753049098672,1.41442961,117760.0,117750.0,0.005]
[1753049098874,1.41442961,117760.0,117750.0,0.65144]
[1753049099678,1.41442961,117760.0,117750.0,0.77371]
[1753049100172,1.47475269,117760.0,117750.0,0.77371]
[1753049100378,1.24059736,117760.0,117750.0,0.77323]
[1753049100977,1.18027428,117760.0,117750.0,0.88796]
[1753049101574,0.33942348,117760.0,117750.0,1.72660053]
[1753049101774,0.33942348,117760.0,117750.0,2.21075586]
[1753049101775,0.06052402,117760.0,117750.0,2.21075586]
[1753049101979,0.04699402,117760.0,117750.0,2.22795058]
[1753049102274,0.21675482,117760.0,117750.0,0.86435992]
[1753049102589,0.23962482,117760.0,117750.0,2.55719525]
[1753049102774,0.04699402,117760.0,117750.0,2.91799525]
[1753049103175,0.13140308,117780.0,117770.0,0.4366864]
[1753049103479,0.34032308,117780.0,117770.0,1.67688173]
[1753049103672,0.51005508,117780.0,117770.0,1.31608173]
[1753049103877,0.55826508,117780.0,117770.0,1.31608173]
[1753049104077,0.58113508,117780.0,117770.0,1.31608173]
[1753049104879,0.520812,117780.0,117770.0,1.31580173]
[1753049105081,0.522812,117780.0,117770.0,1.31680173]
[1753049105378,0.522812,117780.0,117770.0,1.31780173]
[1753049105379,0.523812,117780.0,117770.0,1.31780173]
[1753049105681,0.523812,117780.0,117770.0,0.67284173]
[1753049105882,0.523812,117780.0,117770.0,1.31720173]
[1753049107478,0.523812,117780.0,117770.0,0.67284173]
[1753049107685,0.896902,117780.0,117770.0,2.49148173]
[1753049108285,0.536102,117780.0,117770.0,2.2573264]
[1753049108586,0.536102,117780.0,117770.0,2.49148173]
[1753049109088,0.536102,117780.0,117770.0,2.49052173]
[1753049110890,0.536102,117780.0,117770.0,2.50803317]
[1753049111390,0.536102,117780.0,117770.0,2.27387784]
[1753049111687,0.536102,117780.0,117770.0,2.50803317]
[1753049114093,0.896902,117780.0,117770.0,2.27387784]
[1753049114294,1.021312,117780.0,117770.0,2.50743317]
[1753049114494,1.021312,117780.0,117770.0,2.27327784]
[1753049114793,1.021312,117780.0,117770.0,2.50743317]
[1753049115182,0.884612,117780.0,117770.0,2.50743317]
[1753049115492,0.283,117780.0,117770.0,2.86823317]
[1753049115686,0.01342,117780.0,117770.0,2.86823317]
[1753049115888,0.243,117780.0,117770.0,3.09964988]
[1753049116087,0.243,117780.0,117770.0,3.33380521]
[1753049116282,0.243,117780.0,117770.0,3.40189037]
[1753049116687,0.243,117780.0,117770.0,3.40241037]
[1753049117390,0.243,117780.0,117770.0,2.75909037]
[1753049117590,0.243,117780.0,117770.0,3.40205037]
[1753049118191,0.243,117780.0,117770.0,3.15205037]
[1753049119296,0.243,117780.0,117770.0,3.40205037]
[1753049119492,0.17262,117810.0,117800.0,0.1697032]
[1753049119695,0.29,117810.0,117800.0,1.57655283]
[1753049119997,0.29,117810.0,117800.0,1.62220497]
[1753049120392,0.29,117810.0,117800.0,0.98000497]